bitfinex/quotes_BTCUSD_20240821
["timestamp","ask_amount","ask_price","bid_price","bid_amount"]
[1724273568475,1e-08,61087.0,61086.0,6.08331077]
[1724273568769,0.000825,61092.0,61091.0,2.24289]
[1724273568995,0.000825,61092.0,61091.0,3.15711489]
[1724273569171,0.000825,61092.0,61091.0,6.16934106]
[1724273569372,0.000825,61092.0,61091.0,5.71656289]
[1724273569575,0.000825,61092.0,61091.0,4.86634098]
[1724273570020,0.133425,61092.0,61091.0,1.33645298]
[1724273570203,0.133425,61092.0,61091.0,0.48969]
[1724273570427,0.247825,61092.0,61091.0,0.014]
[1724273570813,0.247825,61092.0,61091.0,0.028]
[1724273571210,0.247825,61092.0,61091.0,0.014]
[1724273571423,0.247825,61092.0,61091.0,0.016]
[1724273571572,0.247825,61092.0,61091.0,0.002]
[1724273571778,0.1433,61091.0,61089.0,0.163695]
[1724273571987,0.1433,61091.0,61087.0,0.327399]
[1724273572180,0.1433,61091.0,61089.0,0.163693]
[1724273572579,0.1433,61091.0,61087.0,0.327399]
[1724273572580,0.1433,61091.0,61090.0,0.163692]
[1724273574002,0.1433,61091.0,61088.0,0.49109]
[1724273574226,0.1433,61091.0,61089.0,0.163694]
[1724273575292,0.1433,61091.0,61090.0,0.002]
[1724273575717,0.1433,61091.0,61089.0,0.163694]
[1724273575921,0.1433,61091.0,61090.0,0.163692]
[1724273577112,0.1433,61091.0,61090.0,0.164692]
[1724273577805,0.1433,61091.0,61090.0,0.163692]
[1724273578624,0.1433,61091.0,61090.0,0.491077]
[1724273578828,0.000825,61092.0,61091.0,0.49107]
[1724273579033,0.000825,61092.0,61091.0,0.81845]
[1724273579238,0.142525,61092.0,61091.0,0.16369]
[1724273579458,0.142525,61092.0,61090.0,0.163692]
[1724273579860,0.142525,61092.0,61090.0,0.164692]
[1724273580068,0.28179542,61091.0,61086.0,0.0009075]
[1724273580264,0.2468,61087.0,61086.0,0.0009075]
[1724273580461,0.74199424,61087.0,61086.0,0.0009075]
[1724273580901,1.06939524,61087.0,61086.0,0.0009075]
[1724273581079,0.74199424,61087.0,61086.0,0.0009075]
[1724273582088,0.74199424,61087.0,61086.0,0.0039075]
[1724273582769,0.74199424,61087.0,61086.0,0.0009075]
[1724273582974,0.737901,61087.0,61086.0,0.0009075]
[1724273587874,0.738726,61087.0,61086.0,0.0009075]
[1724273589325,0.411325,61087.0,61086.0,0.0009075]
[1724273590603,0.476911,61087.0,61086.0,0.0009075]
[1724273591390,0.411325,61087.0,61086.0,0.0009075]
[1724273592453,0.247625,61087.0,61086.0,0.0009075]
[1724273593079,0.411325,61087.0,61086.0,0.0009075]
[1724273595700,1.25412998,61087.0,61086.0,0.0009075]
[1724273595915,1.82528348,61087.0,61086.0,0.0009075]
[1724273596114,2.15268448,61087.0,61086.0,0.0009075]
[1724273596239,2.15268448,61087.0,61086.0,7e-08]
[1724273596441,2.25516445,61087.0,61086.0,7e-08]
[1724273596861,2.26312047,61087.0,61086.0,7e-08]
[1724273597966,2.26312047,61087.0,61086.0,0.00100007]
[1724273597967,2.26412047,61087.0,61086.0,0.00100007]
[1724273598118,2.1616405,61087.0,61086.0,0.00100007]
[1724273598321,2.1606405,61087.0,61086.0,7e-08]
[1724273598530,2.26312589,61087.0,61086.0,0.00100007]
[1724273598731,2.26412589,61087.0,61086.0,0.00200007]
[1724273598970,2.26412589,61087.0,61086.0,0.00100007]
[1724273599170,2.26312589,61087.0,61086.0,7e-08]
[1724273599372,2.26312589,61087.0,61086.0,0.00100007]
[1724273599543,2.26312589,61087.0,61086.0,7e-08]
[1724273599744,2.26312589,61087.0,61086.0,0.00100007]
[1724273600074,2.26412589,61087.0,61086.0,0.00200007]
[1724273600480,2.12437339,61087.0,61086.0,0.00200007]
[1724273600926,2.021888,61087.0,61086.0,0.00200007]
[1724273601599,2.020888,61087.0,61086.0,7e-08]
[1724273601935,2.021888,61087.0,61086.0,0.00200007]
[1724273602136,2.18586678,61087.0,61086.0,0.00100007]
[1724273602428,2.18486678,61087.0,61086.0,7e-08]
[1724273602637,2.18486678,61087.0,61086.0,0.00100007]
[1724273602638,2.2873496,61087.0,61086.0,0.00100007]
[1724273602881,1.722603,61083.0,61082.0,0.0009064]
[1724273603097,1.722603,61083.0,61049.0,0.009064]
[1724273603098,0.16877,61061.0,61060.0,5.522e-05]
[1724273603304,1.12695087,61061.0,61060.0,5.522e-05]
[1724273603510,0.166794,61052.0,61050.0,0.00011292]
[1724273603715,1.73806038,61052.0,61050.0,0.00011292]
[1724273603914,2.30264938,61052.0,61050.0,0.00011292]
[1724273604067,2.30225532,61052.0,61050.0,0.00011292]
[1724273604269,2.30225532,61052.0,61027.0,0.025]
[1724273604270,1.47907094,61039.0,61027.0,0.025]
[1724273604507,2.24927392,61039.0,61027.0,0.025]
[1724273604715,2.02161492,61039.0,61027.0,0.025]
[1724273605038,2.04461492,61039.0,61027.0,0.025]
[1724273605253,2.2085937,61039.0,61027.0,0.025]
[1724273605491,2.04461492,61039.0,61027.0,0.025]
[1724273605693,2.05861492,61039.0,61038.0,0.010086]
[1724273606131,2.05262742,61039.0,61038.0,0.009086]
[1724273606351,1.70080898,61039.0,61038.0,0.011086]
[1724273606569,1.69580898,61039.0,61038.0,0.010086]
[1724273606774,1.69780898,61039.0,61038.0,0.010086]
[1724273606979,1.38014998,61039.0,61038.0,0.011086]
[1724273607183,1.25114998,61039.0,61038.0,0.010086]
[1724273607614,0.591488,61039.0,61038.0,0.009086]
[1724273607836,0.591488,61039.0,61034.0,0.1427]
[1724273607837,0.1,61039.0,61034.0,0.1427]
[1724273608020,0.163834,61038.0,61034.0,0.1427]
[1724273608226,0.114,61039.0,61034.0,0.1427]
[1724273608351,0.163857,61029.0,61024.0,0.1418]
[1724273608568,0.163854,61030.0,61024.0,0.1418]
[1724273608772,0.163844,61034.0,61026.0,0.163863]
[1724273609020,0.327671,61037.0,61025.0,0.327729]
[1724273609228,0.163838,61036.0,61027.0,0.16386]
[1724273609390,0.163838,61036.0,61028.0,0.305658]
[1724273609593,0.001,61029.0,61028.0,0.305658]
[1724273609801,0.001,61029.0,61028.0,3.544094]
[1724273610002,0.001,61029.0,61028.0,3.850922]
[1724273610228,0.001,61029.0,61028.0,0.629658]
[1724273610440,0.001,61029.0,61028.0,0.305658]
[1724273610814,0.001,61029.0,61028.0,0.1438]
[1724273611393,0.16384,61035.0,61028.0,0.1438]
[1724273611599,0.163846,61033.0,61028.0,0.1438]
[1724273611798,0.00409653,61032.0,61028.0,0.1438]
[1724273612011,0.16794453,61032.0,61028.0,0.1418]
[1724273612269,0.16794453,61032.0,61015.0,0.327783]
[1724273612270,0.163857,61029.0,61014.0,0.2459]
[1724273612411,0.00409686,61028.0,61021.0,0.163877]
[1724273612613,0.00409686,61028.0,61019.0,0.327763]
[1724273612614,0.163859,61028.0,61019.0,0.491644]
[1724273612956,0.163859,61028.0,61020.0,0.524879]
[1724273613129,0.163859,61028.0,61020.0,0.163379]
[1724273613337,0.491564,61030.0,61021.0,0.163877]
[1724273613544,0.163855,61030.0,61021.0,0.163877]
[1724273613752,0.163857,61029.0,61021.0,0.166877]
[1724273613952,0.163857,61029.0,61021.0,0.163877]
[1724273614188,0.163857,61029.0,61022.0,0.1372]
[1724273614558,0.327698,61032.0,61022.0,0.301073]
[1724273614759,0.327698,61032.0,61022.0,0.1372]
[1724273614961,0.163856,61030.0,61022.0,0.1372]
[1724273615185,0.163856,61029.0,61022.0,0.1372]
[1724273615790,0.163856,61029.0,61022.0,0.1382]
[1724273615990,0.065644,61031.0,61022.0,0.1392]
[1724273615991,0.003,61030.0,61022.0,0.1392]
[1724273616212,0.166854,61030.0,61022.0,0.1382]
[1724273616408,0.005,61029.0,61022.0,0.1372]
[1724273616611,0.006,61029.0,61022.0,0.1382]
[1724273616810,0.169856,61029.0,61022.0,0.1382]
[1724273617010,0.16795786,61028.0,61022.0,0.1372]
[1724273618363,0.005,61030.0,61022.0,0.1372]
[1724273618490,0.163859,61028.0,61022.0,0.1372]
[1724273618692,0.163862,61027.0,61022.0,0.1372]
[1724273619325,0.165859,61028.0,61022.0,0.1372]
[1724273619502,0.166859,61028.0,61022.0,0.1372]
[1724273619905,0.163859,61028.0,61022.0,0.1372]
[1724273620105,0.002,61027.0,61022.0,0.1372]
[1724273620332,0.002,61027.0,61020.0,0.141]
[1724273620602,0.163871,61024.0,61020.0,0.141]
[1724273620809,0.00409705,61023.0,61017.0,0.302287]
[1724273621245,0.00409705,61023.0,61018.0,0.163885]
[1724273621633,0.00409707,61025.0,61018.0,0.163885]
[1724273621836,0.16796607,61025.0,61018.0,0.163885]
[1724273622443,0.16796607,61025.0,61018.0,0.167885]
[1724273622657,0.32773,61026.0,61020.0,0.0009075]
[1724273622857,0.32774,61024.0,61020.0,0.0009075]
[1724273623089,0.163876,61022.0,61020.0,0.0009075]
[1724273623308,0.16797529,61021.0,61020.0,0.0009075]
[1724273624311,0.16797529,61021.0,61020.0,0.0039075]
[1724273624521,0.327746,61023.0,61020.0,0.0039075]
[1724273624522,0.163875,61023.0,61020.0,0.0039075]
[1724273624722,0.163878,61021.0,61020.0,0.0009075]
[1724273624895,0.492634,61021.0,61020.0,0.0069075]
[1724273625133,0.93279,61021.0,61020.0,0.0069075]
[1724273625338,1.75159591,61021.0,61020.0,0.0009075]
[1724273625746,2.08235191,61021.0,61020.0,0.0049075]
[1724273626103,2.08235191,61021.0,61020.0,0.0089075]
[1724273626264,2.08235191,61021.0,61020.0,3.5e-07]
[1724273626466,2.69840791,61021.0,61020.0,3.5e-07]
[1724273626686,2.70140791,61021.0,61020.0,0.00100035]
[1724273626948,2.69840791,61021.0,61020.0,3.5e-07]
[1724273627151,2.69840791,61021.0,61011.0,0.0002]
[1724273627152,0.164902,61012.0,61011.0,0.0002]
[1724273627355,1.67901698,61012.0,61011.0,0.0002]
[1724273628229,1.67801698,61012.0,61011.0,0.0002]
[1724273628436,0.171902,61012.0,61011.0,0.0012]
[1724273628877,0.008,61012.0,61011.0,0.0012]
[1724273629074,0.008,61012.0,61011.0,3.167032]
[1724273629286,0.008,61012.0,61011.0,3.494841]
[1724273629492,0.008,61012.0,61011.0,3.495841]
[1724273629644,0.011,61012.0,61011.0,3.97045]
[1724273629838,0.008,61012.0,61011.0,3.641641]
[1724273630045,0.011,61012.0,61011.0,3.252004]
[1724273630251,0.003,61012.0,61011.0,2.484004]
[1724273630655,0.003,61012.0,61011.0,2.3211]
[1724273630656,0.009,61012.0,61011.0,2.3211]
[1724273631006,0.009,61012.0,61011.0,2.3321]
[1724273631221,0.163878,61021.0,61011.0,1.6911]
[1724273631425,0.32773,61026.0,61011.0,0.2701]
[1724273631636,0.327726,61027.0,61012.0,2.889828]
[1724273631810,0.163871,61024.0,61014.0,0.163894]
[1724273632034,0.327726,61027.0,61014.0,0.163894]
[1724273632240,0.163873,61023.0,61014.0,0.163894]
[1724273632442,0.163876,61022.0,61014.0,0.163896]
[1724273632646,0.163876,61022.0,61013.0,0.163898]
[1724273633005,0.327761,61020.0,61011.0,0.2591]
[1724273633184,0.163888,61018.0,61011.0,0.2591]
[1724273633383,0.00409756,61017.0,61011.0,0.2611]
[1724273633783,0.163891,61016.0,61011.0,0.2611]
[1724273634018,0.327745,61023.0,61011.0,0.149]
[1724273634019,0.327775,61018.0,61011.0,0.149]
[1724273634211,0.163895,61015.0,61011.0,0.149]
[1724273634413,0.163895,61015.0,61011.0,0.151]
[1724273634618,0.163895,61015.0,61014.0,0.0009075]
[1724273636121,0.327782,61017.0,61014.0,0.0009075]
[1724273636122,0.16389,61017.0,61014.0,0.0009075]
[1724273636325,0.163892,61016.0,61014.0,0.0009075]
[1724273636507,0.001,61015.0,61014.0,0.0009075]
[1724273637020,0.163892,61016.0,61014.0,0.0009075]
[1724273637216,0.163892,61016.0,61014.0,0.0089075]
[1724273637418,0.001,61016.0,61014.0,0.0169075]
[1724273637628,0.001,61016.0,61015.0,0.163894]
[1724273637850,0.001,61016.0,61014.0,0.1808035]
[1724273638065,0.001,61016.0,61014.0,0.1728035]
[1724273638334,0.001,61016.0,61014.0,0.1798035]
[1724273638536,0.163881,61020.0,61014.0,0.0079075]
[1724273639457,0.327755,61022.0,61014.0,0.0079075]
[1724273639636,0.163878,61021.0,61014.0,0.1648035]
[1724273639863,0.001,61016.0,61015.0,0.178894]
[1724273640088,0.001,61016.0,61015.0,0.82747]
[1724273640311,0.000825,61023.0,61019.0,0.163882]
[1724273640799,0.000825,61023.0,61020.0,0.419879]
[1724273641718,0.001825,61023.0,61022.0,0.163875]
[1724273642162,0.001825,61023.0,61022.0,0.491625]
[1724273642394,0.001825,61023.0,61022.0,0.640625]
[1724273642862,0.001825,61023.0,61022.0,0.968375]
[1724273643512,0.000825,61023.0,61022.0,0.968375]
[1724273643758,0.001825,61023.0,61022.0,0.968375]
[1724273643999,0.000825,61023.0,61022.0,1.77912798]
[1724273644235,0.000825,61023.0,61022.0,1.78512798]
[1724273645182,0.000825,61023.0,61022.0,2.50767798]
[1724273645422,0.000825,61023.0,61022.0,2.60767798]
[1724273646411,0.001825,61023.0,61022.0,2.62767798]
[1724273646876,0.001825,61023.0,61022.0,2.61467798]
[1724273647112,0.001825,61023.0,61022.0,2.63673617]
[1724273647588,0.000825,61023.0,61022.0,2.62973617]
[1724273648258,0.001825,61023.0,61022.0,2.64373617]
[1724273648650,0.001825,61023.0,61022.0,2.64473617]
[1724273649048,0.001825,61023.0,61022.0,2.64373617]
[1724273649253,0.001825,61023.0,61022.0,2.64473617]
[1724273649655,0.001825,61023.0,61022.0,2.71789039]
[1724273649975,0.001825,61023.0,61022.0,3.33975882]
[1724273650207,0.06562,61054.0,61046.0,0.819052]
[1724273650396,0.163785,61056.0,61046.0,0.955652]
[1724273650597,0.163785,61056.0,61049.0,0.163802]
[1724273651062,0.2536,61057.0,61051.0,0.163797]
[1724273651239,0.2536,61061.0,61050.0,0.327597]
[1724273651557,0.065609,61064.0,61055.0,0.327569]
[1724273651763,0.2536,61073.0,61056.0,3.29853098]
[1724273651969,0.065599,61074.0,61057.0,3.026428]
[1724273652173,0.1462,61077.0,61059.0,0.1366]
[1724273652386,0.1074,61078.0,61072.0,0.163739]
[1724273652599,0.065596,61077.0,61076.0,0.49119]
[1724273652804,0.109125,61087.0,61071.0,0.1174]
[1724273653008,0.109125,61087.0,61080.0,0.163718]
[1724273653216,0.000825,61087.0,61083.0,0.163709]
[1724273653442,0.000825,61087.0,61072.0,0.26400298]
[1724273653607,0.000825,61087.0,61073.0,3.03080217]
[1724273653812,0.000825,61087.0,61074.0,3.05383098]
[1724273654097,0.000825,61087.0,61084.0,0.163708]
[1724273654564,0.000825,61087.0,61084.0,0.491125]
[1724273655193,0.000825,61087.0,61084.0,0.956242]
[1724273655396,0.000825,61087.0,61084.0,3.84607]
[1724273656871,0.000825,61087.0,61084.0,3.719242]
[1724273657067,0.000825,61087.0,61084.0,2.211242]
[1724273657268,0.000825,61087.0,61084.0,2.203242]
[1724273657926,0.000825,61087.0,61084.0,1.875825]
[1724273658330,0.000825,61087.0,61084.0,1.607825]
[1724273659491,0.000825,61087.0,61084.0,2.09924498]
[1724273659890,0.000825,61087.0,61084.0,4.13807298]
[1724273660233,0.000825,61087.0,61084.0,4.13307298]
[1724273660570,0.000825,61087.0,61084.0,4.57864681]
[1724273660771,0.000825,61087.0,61084.0,4.59264681]
[1724273661000,0.000825,61087.0,61084.0,4.57864681]
[1724273661413,0.00826,61090.0,61089.0,1.081977]
[1724273661592,0.00826,61090.0,61089.0,2.03267098]
[1724273661808,0.00826,61090.0,61089.0,4.92249898]
[1724273662166,0.00826,61090.0,61089.0,4.56319898]
[1724273662370,0.00826,61090.0,61089.0,0.102]
[1724273662571,0.00826,61090.0,61087.0,0.327398]
[1724273662802,0.00826,61090.0,61089.0,0.163695]
[1724273663263,0.00826,61090.0,61087.0,0.1637]
[1724273663665,0.00826,61090.0,61089.0,0.014]
[1724273663995,0.00826,61090.0,61086.0,0.163702]
[1724273664200,0.00826,61090.0,61089.0,0.014]
[1724273664408,0.00826,61090.0,61089.0,0.505086]
[1724273664606,0.00826,61090.0,61086.0,0.327404]
[1724273664808,0.00826,61090.0,61089.0,0.01]
[1724273665495,0.00826,61090.0,61089.0,0.02]
[1724273667698,0.00826,61090.0,61089.0,0.788391]
[1724273667933,0.00826,61090.0,61089.0,1.44347998]
[1724273668846,0.00826,61090.0,61089.0,1.77087098]
[1724273669297,0.00826,61090.0,61089.0,1.76087098]
[1724273669496,0.00826,61090.0,61089.0,1.44347998]
[1724273669625,0.00826,61090.0,61089.0,0.225]
[1724273669827,0.00826,61090.0,61089.0,0.182]
[1724273670064,0.00826,61090.0,61089.0,0.152]
[1724273670276,0.00826,61090.0,61089.0,0.164]
[1724273670682,0.00826,61090.0,61089.0,0.154]
[1724273670910,0.00826,61090.0,61089.0,0.305695]
[1724273671124,0.00826,61090.0,61089.0,0.80708898]
[1724273671330,0.00826,61090.0,61089.0,1.45187098]
[1724273671555,0.00826,61090.0,61089.0,1.46187098]
[1724273672606,0.00826,61090.0,61089.0,1.47487098]
[1724273672940,0.00826,61090.0,61089.0,1.46487098]
[1724273673160,0.00826,61090.0,61089.0,1.47787098]
[1724273674199,0.00826,61090.0,61089.0,1.46487098]
[1724273674373,0.00826,61090.0,61089.0,1.45187098]
[1724273674736,0.00826,61090.0,61089.0,1.46587098]
[1724273675433,0.00826,61090.0,61089.0,1.72047098]
[1724273675926,0.00826,61090.0,61089.0,1.73447098]
[1724273676134,0.00826,61090.0,61089.0,1.72047098]
[1724273676334,0.00826,61090.0,61089.0,1.73447098]
[1724273677173,0.00826,61090.0,61089.0,1.72047098]
[1724273677512,0.00826,61090.0,61089.0,1.73447098]
[1724273677926,0.1117,61116.0,61099.0,1.175679]
[1724273678127,0.1117,61116.0,61099.0,2.30211898]
[1724273678359,0.0002,61119.0,61099.0,5.19194698]
[1724273678555,0.0002,61119.0,61099.0,4.97311898]
[1724273678729,0.0002,61119.0,61099.0,4.33981898]
[1724273678934,0.0002,61119.0,61099.0,4.34781898]
[1724273679143,0.00429065,61119.0,61099.0,4.31681898]
[1724273679344,0.1412,61110.0,61099.0,3.08748198]
[1724273679543,0.1412,61110.0,61099.0,3.07948198]
[1724273679767,0.1412,61110.0,61099.0,3.02648198]
[1724273679968,0.1412,61110.0,61099.0,3.03948198]
[1724273680168,0.1412,61110.0,61099.0,3.03148198]
[1724273680406,0.1412,61114.0,61099.0,3.01848198]
[1724273680688,0.0002,61119.0,61099.0,3.01848198]
[1724273680689,0.1412,61117.0,61099.0,3.04648198]
[1724273680866,0.1412,61117.0,61099.0,3.03248198]
[1724273681046,0.1412,61117.0,61099.0,3.04648198]
[1724273681240,0.1412,61117.0,61099.0,3.03248198]
[1724273681485,0.1412,61117.0,61099.0,3.31978198]
[1724273681683,0.1412,61117.0,61099.0,3.33378198]
[1724273681941,0.1412,61117.0,61099.0,3.30578198]
[1724273682838,0.1412,61117.0,61099.0,3.33378198]
[1724273683447,0.1465,61119.0,61099.0,3.31978198]
[1724273683618,0.0002,61119.0,61099.0,3.66311898]
[1724273683819,0.0002,61119.0,61099.0,3.69602124]
[1724273684030,0.0002,61119.0,61099.0,3.66311898]
[1724273684233,0.0002,61119.0,61099.0,3.64911898]
[1724273684442,0.0002,61119.0,61099.0,3.66511898]
[1724273684646,0.0002,61119.0,61099.0,3.66211898]
[1724273684852,0.0002,61119.0,61099.0,3.64811898]
[1724273684853,0.000864,61100.0,61099.0,3.64811898]
[1724273685011,0.000864,61100.0,61099.0,3.66211898]
[1724273685230,0.000864,61100.0,61099.0,5.17694698]
[1724273685652,0.000864,61100.0,61099.0,5.18994698]
[1724273685849,0.000864,61100.0,61099.0,4.78964698]
[1724273686059,0.000864,61100.0,61099.0,4.43430998]
[1724273686462,0.000864,61100.0,61099.0,4.44830998]
[1724273686883,0.000864,61100.0,61099.0,4.43430998]
[1724273687290,0.000864,61100.0,61099.0,4.44830998]
[1724273687492,0.000864,61100.0,61099.0,4.43430998]
[1724273687944,0.000864,61100.0,61099.0,4.44830998]
[1724273688158,0.000864,61100.0,61099.0,5.09394698]
[1724273688356,0.000864,61100.0,61099.0,4.77960998]
[1724273688938,0.000864,61100.0,61099.0,4.76560998]
[1724273689216,0.000864,61100.0,61099.0,5.10694698]
[1724273689352,0.000864,61100.0,61099.0,4.77960998]
[1724273689748,0.000864,61100.0,61099.0,5.10694698]
[1724273692611,0.000864,61100.0,61099.0,5.09394698]
[1724273692830,0.000864,61100.0,61099.0,5.07994698]
[1724273693005,0.000864,61100.0,61099.0,5.09394698]
[1724273693209,0.000864,61100.0,61099.0,4.94811898]
[1724273693822,0.000864,61100.0,61099.0,4.81811898]
[1724273694056,0.000864,61100.0,61099.0,2.44048198]
[1724273694489,0.000864,61100.0,61099.0,2.41248198]
[1724273694882,0.000864,61100.0,61099.0,2.44048198]
[1724273695420,0.000864,61100.0,61099.0,2.42648198]
[1724273695634,0.000864,61100.0,61099.0,2.44048198]
[1724273695842,0.000864,61100.0,61099.0,2.42648198]
[1724273696043,0.000864,61100.0,61099.0,2.44048198]
[1724273696269,0.000864,61100.0,61099.0,2.04668198]
[1724273696474,0.000864,61100.0,61099.0,2.03268198]
[1724273696783,0.000864,61100.0,61099.0,1.40968198]
[1724273697600,0.000864,61100.0,61099.0,1.42368198]
[1724273697734,0.000864,61100.0,61099.0,1.33768198]
[1724273700326,0.000864,61100.0,61099.0,4.22750998]
[1724273702509,0.000864,61100.0,61099.0,4.55484698]
[1724273702713,0.000864,61100.0,61099.0,4.70034698]
[1724273703548,0.000864,61100.0,61099.0,4.68634698]
[1724273703865,0.000864,61100.0,61099.0,4.70034698]
[1724273704066,0.000864,61100.0,61099.0,4.68634698]
[1724273704336,0.000864,61100.0,61099.0,4.37300998]
[1724273704546,0.000864,61100.0,61099.0,2.04068198]
[1724273704757,0.000864,61100.0,61099.0,2.05468198]
[1724273705746,0.000864,61100.0,61099.0,2.04068198]
[1724273706848,0.000864,61100.0,61099.0,2.05468198]
[1724273707045,0.00046998,61100.0,61099.0,2.05468198]
[1724273707273,0.00046998,61100.0,61099.0,2.06868198]
[1724273708658,0.00046998,61100.0,61099.0,4.22750998]
[1724273710260,0.00046998,61100.0,61099.0,4.40380998]
[1724273710465,0.00046998,61100.0,61099.0,4.70580998]
[1724273710666,0.00046998,61100.0,61099.0,4.82050998]
[1724273710892,0.00046998,61100.0,61099.0,5.14584698]
[1724273711264,0.00046998,61100.0,61099.0,5.14784698]
[1724273711489,0.00046998,61100.0,61099.0,5.14584698]
[1724273712338,0.00046998,61100.0,61099.0,4.81750998]
[1724273712750,0.00046998,61100.0,61099.0,4.94584698]
[1724273712907,0.00046998,61100.0,61099.0,4.94684698]
[1724273713707,0.00046998,61100.0,61099.0,4.99579546]
[1724273713940,0.00046998,61100.0,61099.0,4.99479546]
[1724273714340,0.00046998,61100.0,61099.0,4.94684698]
[1724273714899,0.00046998,61100.0,61099.0,4.93484698]
[1724273715101,0.00046998,61100.0,61099.0,4.92084698]
[1724273715298,0.00046998,61100.0,61099.0,4.94884698]
[1724273715737,0.00046998,61100.0,61099.0,4.68584698]
[1724273716417,0.00046998,61100.0,61099.0,4.96414698]
[1724273716626,0.00046998,61100.0,61099.0,4.96514698]
[1724273716760,0.00046998,61100.0,61099.0,5.0385697]
[1724273716968,0.00046998,61100.0,61099.0,5.6553033]
[1724273717183,0.00046998,61100.0,61099.0,5.72878394]
[1724273717371,0.00046998,61100.0,61099.0,5.6413033]
[1724273717853,0.0002,61119.0,61118.0,1.579622]
[1724273718064,0.0002,61119.0,61118.0,2.20185998]
[1724273718264,0.0002,61119.0,61118.0,5.09568798]
[1724273718531,0.0002,61119.0,61118.0,5.80861947]
[1724273718732,0.0002,61119.0,61118.0,6.0231]
[1724273718969,0.0002,61119.0,61118.0,3.36252647]
[1724273719174,0.00826,61138.0,61129.0,0.826752]
[1724273719424,0.00826,61138.0,61129.0,1.72715919]
[1724273719630,0.00826,61138.0,61129.0,5.54959898]
[1724273719831,0.00826,61138.0,61137.0,1.915269]
[1724273720046,0.00826,61138.0,61137.0,4.97209998]
[1724273720263,0.00826,61138.0,61137.0,5.39923398]
[1724273720465,0.00826,61138.0,61137.0,5.79821952]
[1724273720875,0.00826,61138.0,61137.0,5.79822063]
[1724273721080,0.00826,61138.0,61137.0,5.74936798]
[1724273721688,0.00826,61138.0,61137.0,5.81217272]
[1724273721902,0.00826,61138.0,61137.0,5.82617272]
[1724273722112,0.00826,61138.0,61137.0,5.82617095]
[1724273722327,0.00826,61138.0,61137.0,5.76336798]
[1724273722531,0.00826,61138.0,61137.0,5.77736798]
[1724273722889,0.00826,61138.0,61137.0,5.78560919]
[1724273723849,0.00826,61138.0,61137.0,5.77160919]
[1724273724138,0.00826,61138.0,61137.0,5.75760919]
[1724273724366,0.00825,61149.0,61146.0,2.238482]
[1724273724573,0.00825,61149.0,61146.0,2.85356998]
[1724273724789,0.00825,61149.0,61146.0,5.74339798]
[1724273725396,0.00825,61149.0,61146.0,5.74539798]
[1724273725804,0.00825,61149.0,61146.0,5.75939798]
[1724273726005,0.00825,61149.0,61146.0,5.77339798]
[1724273726631,0.00825,61149.0,61146.0,5.78146317]
[1724273726839,0.00825,61149.0,61146.0,5.77746317]
[1724273727079,0.00825,61149.0,61146.0,5.20307817]
[1724273727365,0.00825,61149.0,61146.0,5.15107817]
[1724273727568,0.00825,61149.0,61146.0,5.16507817]
[1724273727722,0.00825,61149.0,61146.0,5.17907817]
[1724273727926,0.00825,61149.0,61146.0,5.16607817]
[1724273728157,0.00825,61149.0,61146.0,5.29027817]
[1724273728328,0.00825,61149.0,61146.0,5.16607817]
[1724273728646,0.00825,61149.0,61146.0,4.83899317]
[1724273728826,0.00825,61149.0,61146.0,5.34307817]
[1724273729034,0.00825,61149.0,61146.0,5.34607817]
[1724273729380,0.00825,61149.0,61146.0,5.67316317]
[1724273729776,0.00825,61149.0,61146.0,5.67416317]
[1724273730353,0.00825,61149.0,61146.0,5.76426317]
[1724273731146,0.00825,61149.0,61146.0,5.79226317]
[1724273731347,0.00825,61149.0,61146.0,5.77826317]
[1724273731544,0.00825,61149.0,61146.0,5.76426317]
[1724273731766,0.00825,61149.0,61146.0,5.77826317]
[1724273732069,0.00826,61153.0,61151.0,0.164529]
[1724273732244,0.00824,61162.0,61158.0,0.818552]
[1724273732456,0.00824,61162.0,61158.0,5.07952498]
[1724273732637,0.00824,61162.0,61158.0,5.52304598]
[1724273733052,0.00824,61162.0,61158.0,5.51904598]
[1724273733471,0.14564,61162.0,61158.0,4.91272498]
[1724273733701,0.1101,61159.0,61158.0,4.62542498]
[1724273734315,0.1101,61159.0,61158.0,4.63942498]
[1724273734597,0.1101,61159.0,61158.0,4.64769467]
[1724273735176,0.1101,61159.0,61158.0,4.66169467]
[1724273735379,0.1101,61159.0,61158.0,4.64769467]
[1724273736003,0.0002,61159.0,61158.0,4.93499467]
[1724273737352,0.0002,61159.0,61158.0,4.94899467]
[1724273737547,0.0002,61159.0,61158.0,4.92099467]
[1724273738003,0.0002,61159.0,61158.0,4.94899467]
[1724273738334,0.0002,61159.0,61158.0,4.92099467]
[1724273738584,0.0002,61159.0,61158.0,4.93499467]
[1724273738795,0.0002,61159.0,61158.0,4.95999467]
[1724273739029,0.0002,61159.0,61158.0,4.95899467]
[1724273739228,0.0002,61159.0,61158.0,4.93599467]
[1724273739867,0.0002,61159.0,61158.0,4.94999467]
[1724273742026,0.0002,61159.0,61158.0,5.55641567]
[1724273742223,0.0002,61159.0,61158.0,4.94999467]
[1724273743886,0.0002,61159.0,61158.0,4.95099467]
[1724273744081,0.0002,61159.0,61158.0,5.44271567]
[1724273744229,0.000823,61159.0,61158.0,5.44271567]
[1724273744433,0.00824,61162.0,61161.0,1.750422]
[1724273744687,0.00826,61163.0,61162.0,0.8225]
[1724273744901,0.00826,61163.0,61162.0,4.70184469]
[1724273745101,0.00826,61163.0,61162.0,5.02884469]
[1724273745324,0.2556,61183.0,61178.0,0.164457]
[1724273745546,0.0121118,61198.0,61178.0,3.97538444]
[1724273745547,0.49229154,61182.0,61178.0,3.97538444]
[1724273745759,0.2556,61188.0,61178.0,3.97538444]
[1724273745760,0.2556,61188.0,61178.0,4.30429844]
[1724273745978,0.2556,61188.0,61178.0,4.65621244]
[1724273746186,0.2556,61188.0,61178.0,4.65221244]
[1724273746397,0.2556,61188.0,61178.0,4.65421244]
[1724273746606,0.2556,61188.0,61178.0,4.65521244]